[Event "FIDE World Rapid-ch Open 2018"]
[White "khayat, Abdullah F"]
[Black "Masrahi, Abdulrahman A"]
[Site "St. Petersburg"]
[Round "12.98"]
[Annotator "NA"]
[Result "0-1"]
[Date "2018.12.28"]
[WhiteElo "1723"]
[BlackElo "1903"]
[PlyCount "64"]
[TimeControl "900+10"]

1. d4 {[%emt 0:0:0]} d5 {[%emt 0:0:0]} 2. g3 {[%emt 0:0:0]} Nf6 {[%emt 0:0:0]} 3. Bg2 {[%emt 0:0:0]} Bf5 {[%emt 0:0:0]} 4. Nf3 {[%emt 0:0:1]} h6 {[%emt 0:0:0]} 5. 0-0 {[%emt 0:0:2]} e6 {[%emt 0:0:1]} 6. c3 {[%emt 0:0:0]} Be7 {[%emt 0:0:3]} 7. Nbd2 {[%emt 0:0:1]} 0-0 {[%emt 0:0:3]} 8. Re1 {[%emt 0:0:2]} c5 {[%emt 0:0:22]} 9. a3 {[%emt 0:0:8]} Nc6 {[%emt 0:0:4]
} 10. b4 {[%emt 0:0:7]} cxd4 {[%emt 0:0:19]} 11. cxd4 {[%emt 0:0:7]} Qb6 {[%emt 0:0:35]
} 12. Bb2 {[%emt 0:0:11]} a5 {[%emt 0:0:44]} 13. e3 {[%emt 0:0:0]} axb4 {[%emt 0:0:41]} 14. a4 {[%emt 0:0:17]} Rfc8 {[%emt 0:0:46]} 15. Qe2 {[%emt 0:1:1]} b3 {[%emt 0:1:15]} 16. Qb5 {[%emt 0:4:41]} Qxb5 {[%emt 0:1:8]
} 17. axb5 {[%emt 0:0:2]} Na5 {[%emt 0:0:1]} 18. Rec1 {[%emt 0:1:18]
} Bc2 {[%emt 0:3:5]} 19. Ne1 {[%emt 0:0:39]} Bb4 {[%emt 0:0:0]} 20. Ndf3 {[%emt 0:1:29]} Ne4 {[%emt 0:1:21]} 21. Ne5 {[%emt 0:2:10]} Bd2 {[%emt 0:1:20]} 22. Bxe4 {[%emt 0:2:34]} dxe4 {[%emt 0:0:6]} 23. Nxc2 {[%emt 0:0:15]
} Bxc1 {[%emt 0:0:21]} 24. Rxc1 {[%emt 0:0:4]} bxc2 {[%emt 0:0:0]} 25. Nd7 {[%emt 0:0:7]} Nb3 {[%emt 0:0:15]} 26. Re1 {[%emt 0:0:19]} c1=Q {[%emt 0:1:14]} 27. Bxc1 {[%emt 0:0:7]} Rxc1 {[%emt 0:0:3]} 28. Rxc1 {[%emt 0:0:2]} Nxc1 {[%emt 0:0:2]} 29. Nc5 {[%emt 0:0:9]} Ra5 {[%emt 0:0:0]} 30. Nxb7 {[%emt 0:0:12]} Rxb5 {[%emt 0:0:3]} 31. Nd6 {[%emt 0:0:2]
} Rb2 {[%emt 0:1:7]} 32. Nxe4 {[%emt 0:0:22]} Nd3 {[%emt 0:0:5]} 0-1

[Event "FIDE World Rapid-ch Open 2018"]
[White "Al Turky, Fahad A"]
[Black "Guimaraes, Diogo Duarte"]
[Site "St. Petersburg"]
[Round "12.99"]
[Annotator "NA"]
[Result "0-1"]
[Date "2018.12.28"]
[WhiteElo "1836"]
[BlackElo "2278"]
[PlyCount "104"]
[TimeControl "900+10"]

1. e4 {[%emt 0:0:0]} e5 {[%emt 0:0:0]} 2. Nf3 {[%emt 0:0:3]} Nc6 {[%emt 0:0:2]
} 3. Bb5 {[%emt 0:0:52]} Nf6 {[%emt 0:0:3]} 4. 0-0 {[%emt 0:0:0]} Bc5 {[%emt 0:0:12]} 5. d3 {[%emt 0:0:27]} Nd4 {[%emt 0:0:35]} 6. Bc4 {[%emt 0:0:31]} d6 {[%emt 0:0:33]} 7. h3 {[%emt 0:0:36]} 0-0 {[%emt 0:0:7]
} 8. Nc3 {[%emt 0:1:35]} h6 {[%emt 0:0:20]} 9. Be3 {[%emt 0:0:27]} Nxf3+ {[%emt 0:2:30]
} 10. Qxf3 {[%emt 0:0:5]} Qe7 {[%emt 0:1:32]} 11. Bxc5 {[%emt 0:2:5]
} dxc5 {[%emt 0:0:3]} 12. Qe2 {[%emt 0:2:12]} c6 {[%emt 0:0:0]} 13. a4 {[%emt 0:0:11]} Be6 {[%emt 0:0:46]} 14. Bxe6 {[%emt 0:0:35]} Qxe6 {[%emt 0:0:2]} 15. f4 {[%emt 0:0:14]} exf4 {[%emt 0:0:13]} 16. Rxf4 {[%emt 0:0:11]
} Rae8 {[%emt 0:0:17]} 17. Qf2 {[%emt 0:2:2]} Nd7 {[%emt 0:0:0]} 18. Rf1 {[%emt 0:0:12]} b6 {[%emt 0:1:41]} 19. Ne2 {[%emt 0:0:10]} Qe5 {[%emt 0:0:52]} 20. b3 {[%emt 0:0:49]} g6 {[%emt 0:0:28]} 21. Ng3 {[%emt 0:0:0]} Qd4 {[%emt 0:0:13]} 22. Kh2 {[%emt 0:0:42]} Qxf2 {[%emt 0:0:11]} 23. R1xf2 {[%emt 0:0:11]} f6 {[%emt 0:0:13]} 24. Nf1 {[%emt 0:0:30]} Kf7 {[%emt 0:0:24]
} 25. Ne3 {[%emt 0:0:9]} Ke6 {[%emt 0:0:4]} 26. Kg1 {[%emt 0:0:0]} b5 {[%emt 0:0:17]} 27. axb5 {[%emt 0:0:23]} cxb5 {[%emt 0:0:2]} 28. Nd5 {[%emt 0:0:2]} Rc8 {[%emt 0:0:33]} 29. Rf1 {[%emt 0:0:22]} Rc6 {[%emt 0:0:59]
} 30. Ra1 {[%emt 0:0:6]} a6 {[%emt 0:0:2]} 31. Rxa6 {[%emt 0:0:0]} Rxa6 {[%emt 0:0:2]} 32. Nc7+ {[%emt 0:0:1]} Ke5 {[%emt 0:0:1]} 33. Nxa6 {[%emt 0:0:8]} Kxf4 {[%emt 0:0:2]} 34. Nc7 {[%emt 0:0:5]} Rb8 {[%emt 0:0:35]
} 35. Kf2 {[%emt 0:0:4]} Ke5 {[%emt 0:0:7]} 36. Ke3 {[%emt 0:0:0]} f5 {[%emt 0:0:5]} 37. Na6 {[%emt 0:0:18]} Rb7 {[%emt 0:0:29]} 38. c3 {[%emt 0:0:22]} f4+ {[%emt 0:0:2]} 39. Kf3 {[%emt 0:0:20]} Ra7 {[%emt 0:0:0]} 40. d4+ {[%emt 0:0:6]} cxd4 {[%emt 0:0:35]} 41. cxd4+ {[%emt 0:0:0]} Kxd4 {[%emt 0:0:2]} 42. Nb4 {[%emt 0:0:1]} Ne5+ {[%emt 0:0:2]} 43. Kxf4 {[%emt 0:0:44]} Rf7+ {[%emt 0:0:1]} 44. Kg3 {[%emt 0:0:3]} Kxe4 {[%emt 0:0:1]
} 45. Na6 {[%emt 0:0:11]} Nd3 {[%emt 0:0:10]} 46. Nb8 {[%emt 0:0:0]} Rc7 {[%emt 0:0:37]} 47. Kg4 {[%emt 0:0:31]} Ne5+ {[%emt 0:0:36]} 48. Kh4 {[%emt 0:0:8]} Kf4 {[%emt 0:1:0]} 49. Na6 {[%emt 0:0:11]} Rc3 {[%emt 0:1:44]
} 50. Nb4 {[%emt 0:0:6]} Rc5 {[%emt 0:0:5]} 51. Na6 {[%emt 0:0:0]} Nf3+ {[%emt 0:0:3]} 52. gxf3 {[%emt 0:0:18]} Rh5# {[%emt 0:0:2]} 0-1

[Event "FIDE World Rapid-ch Open 2018"]
[White "Alsulaymi, Abdullah M"]
[Black "Ahmed Hassan Abdillahi"]
[Site "St. Petersburg"]
[Round "12.100"]
[Annotator "NA"]
[Result "0-1"]
[Date "2018.12.28"]
[WhiteElo "1833"]
[BlackElo "1570"]
[PlyCount "48"]
[TimeControl "900+10"]

1. e4 {[%emt 0:0:0]} c5 {[%emt 0:0:15]} 2. b4 {[%emt 0:0:0]} b6 {[%emt 0:0:0]} 3. bxc5 {[%emt 0:0:0]} bxc5 {[%emt 0:0:1]} 4. Nf3 {[%emt 0:0:0]} Bb7 {[%emt 0:0:2]} 5. Nc3 {[%emt 0:0:1]} g6 {[%emt 0:0:3]} 6. Rb1 {[%emt 0:0:4]
} Qc7 {[%emt 0:0:3]} 7. Bc4 {[%emt 0:0:25]} e6 {[%emt 0:0:9]
} 8. 0-0 Bg7 9. d3 {[%emt 0:0:39]} Bxc3 {[%emt 0:0:15]} 10. Bb3 {[%emt 0:0:0]} Nc6 {[%emt 0:0:9]} 11. Ba3 {[%emt 0:0:29]} Na5 {[%emt 0:0:17]} 12. d4 {[%emt 0:0:11]} Bxe4 {[%emt 0:0:24]} 13. Bxc5 {[%emt 0:0:25]} Ne7 {[%emt 0:0:0]} 14. Qe2 {[%emt 0:0:37]} Bc6 {[%emt 0:0:12]} 15. Qd3 {[%emt 0:0:18]} Nxb3 {[%emt 0:0:3]} 16. Rxb3 {[%emt 0:0:10]} Nd5 {[%emt 0:0:13]} 17. Ng5 {[%emt 0:0:45]
} d6 {[%emt 0:0:3]} 18. Ba3 {[%emt 0:0:20]} 0-0 19. Qh3 h5 {[%emt 0:0:53]
} 20. g4 {[%emt 0:0:22]} Qe7 {[%emt 0:0:8]} 21. Ne4 {[%emt 0:0:0]} Bxd4 {[%emt 0:0:9]} 22. Nxd6 {[%emt 0:0:23]} Qg5 {[%emt 0:0:2]} 23. Rg3 {[%emt 0:2:58]} Nf4 {[%emt 0:1:6]} 24. Qxh5 {[%emt 0:0:25]} Ne2# {[%emt 0:0:6]
} 0-1